Cogmind - Beta 17 @@@ ROGUE MODE // 2026.08.02 @ 17:49:28 Player: MrFartsburg Result: Destroyed by G-34 Mercenary with Small Laser Performance ------------- Evolutions (0) 0 Regions Visited (4) 800 Robots Destroyed (12) 60 Value Destroyed (252) 252 Prototype IDs (0) 0 Alien Tech Used (0) 0 Bonus (300) 300 TOTAL SCORE: 1412 Bonus ------- Aligned with FarCom 300 Cogmind --------- Core Integrity 0/250 Matter 300/300 Energy 120/125 System Corruption 0% Temperature Cool (6) Movement Walking (190) Ox1 Location -9/Mines Parts ------- > --- POWER (1) -------- Light Ion Engine > --- PROPULSION (2) --- Aluminum Leg Aluminum Leg > --- UTILITY (2) ------ Large Storage Unit Utility Shielding > --- WEAPON (2) ------- Mace > --- INVENTORY (15) --- Light Ion Engine EM Pulse Gun Light Assault Rifle Mining Laser Welding Torch Hammer Heavy Hammer Mining Claw Peak State ------------ > --- POWER ------------ Light Ion Engine > --- PROPULSION ------- Light Treads Light Treads > --- UTILITY ---------- Large Storage Unit Light Armor Plating > --- WEAPON ----------- Mace Heavy Hammer > --- INVENTORY -------- Light Ion Engine Aluminum Leg Aluminum Leg Utility Shielding EM Pulse Gun Light Assault Rifle Heavy Assault Rifle Mining Laser Hammer [Rating: 10] Favorites ----------- Power Light Ion Engine Engine Light Ion Engine Propulsion Aluminum Leg Treads Light Treads Leg Aluminum Leg Utility Large Storage Unit Storage Large Storage Unit Protection Utility Shielding Weapon Mace Energy Gun Medium Laser Ballistic Gun Heavy Assault Rifle Special Weapon Mining Laser Impact Weapon Mace Build | -11 -10 -10 -10 -9 ------- Run | Yrd Mat Min Exi Min Slots Evolved . | . . . . . Power . | . . . . . Propulsion . | . . . . . Utility . | . . . . . Weapon . | . . . . . Parts Attached 16 | 6 5 5 . . Power 2 | 1 . 1 . . Engine 2 | 1 . 1 . . Core . | . . . . . Reactor . | . . . . . Propulsion 4 | 2 . 2 . . Treads 2 | 2 . . . . Leg 2 | . . 2 . . Wheel . | . . . . . Hover . | . . . . . Flight . | . . . . . Utility 4 | 1 2 1 . . Device . | . . . . . Storage 2 | 1 1 . . . Processor . | . . . . . Hackware . | . . . . . Protection 2 | . 1 1 . . Artifact . | . . . . . Weapon 6 | 2 3 1 . . Energy Gun 2 | 2 . . . . Energy Cannon . | . . . . . Ballistic Gun 1 | . . 1 . . Ballistic Cannon . | . . . . . Launcher . | . . . . . Special Weapon 1 | . 1 . . . Impact Weapon 2 | . 2 . . . Slashing Weapon . | . . . . . Piercing Weapon . | . . . . . Special Melee Weapon . | . . . . . Unidentified Prototypes . | . . . . . Parts Lost 3 | . . 3 . . Power 1 | . . 1 . . Propulsion 1 | . . 1 . . Utility 1 | . . 1 . . Weapon . | . . . . . Highest Loss Streak 3 | . . 3 . . To Critical Strikes . | . . . . . Average Backups 8 | 2 7 11 8 8 Power 1 | . 1 1 1 1 Propulsion . | 1 2 1 . . Utility . | . . . . . Weapon 5 | . 3 6 6 6 Tool/Special . | . . . . . Unused Backups 5 | . . . . 5 Power 1 | . . . . 1 Propulsion . | . . . . . Utility . | . . . . . Weapon 3 | . . . . 3 Tool/Special 1 | . . . . 1 Average Slot Usage (%) 98 | . 96 96 100 92 Engine 13 | . 14 12 14 14 Treads 10 | . 28 25 . . Leg 17 | . . 1 28 28 Storage 14 | . 14 14 14 14 Protection 12 | . 10 12 14 14 Ballistic Gun 8 | . . 4 14 7 Special Weapon 1 | . . 9 . . Impact Weapon 16 | . 23 14 14 14 Peak Build Rating 10 | 6 10 10 9 9 Average Rating 8 | 5 8 9 9 7 On Entrance 6 | . 6 9 9 9 Avg Prop Armor Cover (%) . | . . . . . Naked Turns . | . . . . . Heaviest Build 31 | 12 31 29 29 26 Greatest Support 40 | 40 40 40 20 20 Greatest Overweight (x) 1 | . . 1 1 1 Average Overweight (x) . | . . . 1 1 Largest Inventory Capacity 15 | 8 15 15 15 15 Average Capacity 13 | 7 9 15 15 15 Most Carried 12 | 4 11 12 8 8 Average Carried 8 | 2 7 11 8 8 Final Capacity 15 | 8 15 15 15 15 Final Carried 11 | 4 11 8 8 8 Class Distribution -------------------- 100% | Mutant Dominant Class ---------------- Mutant | -10/Materials Mutant | -10/Mines Mutant | -10/Exiles Mutant | -9/Mines Resources | -11 -10 -10 -10 -9 ----------- Run | Yrd Mat Min Exi Min Matter Collected 345 | 260 30 55 . . Remotely . | . . . . . Salvage Created 283 | . 71 135 . 77 Parts 7 | . . 6 . 1 Haulers Intercepted . | . . . . . Recyclers Shooed . | . . . . . Parts Field Recycled . | . . . . . Retrieved Matter . | . . . . . Parts Self-Destructed . | . . . . . Prevented . | . . . . . Parts Restored . | . . . . . Kills | -11 -10 -10 -10 -9 ------- Run | Yrd Mat Min Exi Min Combat Hostiles Destroyed 10 | . 1 7 . 2 Melee 5 | . . 5 . . Classes Destroyed 5 | . 3 1 . 1 Worker 1 | . 1 . . . Builder 1 | . 1 . . . Swarmer 5 | . . 5 . . Grunt 4 | . 1 2 . 1 Duelist 1 | . . . . 1 Best Kill Streak 5 | . 1 5 . 2 Combat Bots Only 5 | . 1 5 . 2 Max Kills in Single Turn 1 | . 1 1 . 1 Gunslinging . | . . . . . Exploded . | . . . . . Melee 1 | . . 1 . . Uniques/NPCs Destroyed . | . . . . . Combat | -11 -10 -10 -10 -9 -------- Run | Yrd Mat Min Exi Min Hostile Shots Fired 117 | . 10 70 . 37 Missed 28 | . 1 17 . 10 Hits 89 | . 9 53 . 27 Melee 6 | . . . . 6 Projectile 83 | . 9 53 . 21 Critical Strikes 2 | . . 1 . 1 Damage Taken 1040 | . 100 514 . 426 Core 261 | . 22 98 . 141 Absorbed by Shields . | . . . . . Redirected to Shielding 3 | . . . . 3 Core Remaining (%) 100 | 100 . . . . Volleys Fired 1 | . 1 . . . Largest 1 | . 1 . . . Hottest 100 | . 100 . . . Shots Fired 1 | . 1 . . . Gun . | . . . . . Cannon . | . . . . . Launcher . | . . . . . Special 1 | . 1 . . . Kinetic . | . . . . . Thermal 1 | . 1 . . . Explosive . | . . . . . Electromagnetic . | . . . . . Robot Hit Streak . | . . . . . Robot Miss Streak . | . . . . . Penetration Max . | . . . . . Secondary Targets . | . . . . . Shots Hit Robots 29 | . 7 12 . 10 Core Hits 4 | . . 4 . . Critical Kills 3 | . . 3 . . Critical Parts Destroyed 4 | . 1 2 . 1 Critical Strikes 8 | . 1 5 . 2 Smash 8 | . 1 5 . 2 Melee Attacks 48 | . 9 22 . 17 Impact 48 | . 9 22 . 17 Slashing . | . . . . . Piercing . | . . . . . Sneak Attacks 3 | . 2 . . 1 Combat Hostiles 1 | . . . . 1 Follow-up Attacks 1 | . 1 . . . Damage Inflicted 1018 | . 285 424 . 309 Guns . | . . . . . Cannons . | . . . . . Explosions . | . . . . . Melee 1018 | . 285 424 . 309 Ramming . | . . . . . Kinetic . | . . . . . Thermal . | . . . . . Explosive . | . . . . . Electromagnetic . | . . . . . Impact 1018 | . 285 424 . 309 Slashing . | . . . . . Piercing . | . . . . . Highest Corruption . | . . . . . Average Corruption . | . . . . . Corruption Purged . | . . . . . Corruption Blocked . | . . . . . Overload Shots . | . . . . . Overflow Damage 333 | . 139 116 . 78 Projectiles . | . . . . . Explosions . | . . . . . Melee 333 | . 139 116 . 78 Knockbacks 7 | . 4 1 . 2 Impact 7 | . 4 1 . 2 Kinetic . | . . . . . Secondary . | . . . . . Self-Inflicted Damage . | . . . . . Shots . | . . . . . Rammed . | . . . . . Targets Rammed . | . . . . . Kicked . | . . . . . Crushed . | . . . . . Highest Temperature 32 | . 32 9 . . Average Temperature 15 | . 16 9 . . Received Heat Transfer 315 | . 54 135 . 126 Siege Activations . | . . . . . Martial Activations . | . . . . . Shielding Activations . | . . . . . Robots Disrupted . | . . . . . Combat Hostiles . | . . . . . Robots Corrupted 7 | . 3 2 . 2 Combat Hostiles 5 | . 1 2 . 2 Parts Fried 5 | . 2 2 . 1 Impact Corruptions 14 | . 5 6 . 3 Robots Melted . | . . . . . Combat Hostiles . | . . . . . Parts Melted . | . . . . . Heat Transferred . | . . . . . Parts Sabotaged . | . . . . . Parts Stolen . | . . . . . Parts Stripped . | . . . . . Power Chain Reactions . | . . . . . Alert | -11 -10 -10 -10 -9 ------- Run | Yrd Mat Min Exi Min Maximum Alert Level . | . . . . . Low Security (%) 100 | 100 100 100 . 100 Level 1 . | . . . . . Level 2 . | . . . . . Level 3 . | . . . . . Level 4 . | . . . . . Level 5 . | . . . . . High Security . | . . . . . Max Security . | . . . . . Peak Influence 80 | . 25 80 . 40 Initial . | . . . . . Average 10 | . 2 23 . 25 Influence Increases 266 | . 46 170 . 50 Destroy 0b10 Robot/C 200 | . 20 140 . 40 Destroy 0b10 Robot/NC 10 | . 10 . . . Destroy Leader 40 | . . 30 . 10 Destroy Structure 1 | . 1 . . . Lose Combat Pursuer 15 | . 15 . . . Influence Decreases 236 | . 46 100 70 20 Entered New Map 70 | . . . 70 . Time Decay 146 | . 46 80 . 20 Lost Part 20 | . . 20 . . Squads Dispatched . | . . . . . Investigation . | . . . . . Extermination . | . . . . . Reinforcement . | . . . . . Assault . | . . . . . Garrison . | . . . . . Intercept . | . . . . . Searches Triggered . | . . . . . Construction Impeded . | . . . . . Haulers Reinforced . | . . . . . Active Scanning Responses . | . . . . . Cargo Convoy Interrupts . | . . . . . Stealth | -11 -10 -10 -10 -9 --------- Run | Yrd Mat Min Exi Min Distress Signals . | . . . . . Communications Jammed . | . . . . . Distress Signals . | . . . . . Times Spotted 13 | . 2 8 . 3 Peak Tracking Total 4 | . 2 4 . 3 Tactical Retreats 1 | . 1 . . . Traps | -11 -10 -10 -10 -9 ------- Run | Yrd Mat Min Exi Min Traps Triggered . | . . . . . Indirectly . | . . . . . Trap Hack Attempts . | . . . . . Triggered . | . . . . . Disarmed . | . . . . . Reprogrammed . | . . . . . Reused . | . . . . . Traps Extracted . | . . . . . Installed . | . . . . . Triggered . | . . . . . Machines | -11 -10 -10 -10 -9 ---------- Run | Yrd Mat Min Exi Min Machines Disabled . | . . . . . Max in Single Turn . | . . . . . Machines Repaired . | . . . . . Machines Dismantled . | . . . . . Machines Sabotaged . | . . . . . Overloaded Fab Kills . | . . . . . Hacking | -11 -10 -10 -10 -9 --------- Run | Yrd Mat Min Exi Min Machines Accessed 8 | . 4 . 4 . Terminals 3 | . 3 . . . Fabricators . | . . . . . Repair Stations . | . . . . . Recycling Units 1 | . 1 . . . Scanalyzers . | . . . . . Garrison Access . | . . . . . Total Hacks 63 | . 14 . 49 . Successful 60 | . 11 . 49 . Failed 3 | . 3 . . . Catastrophic . | . . . . . Database Lockouts . | . . . . . Manual . | . . . . . Terminals 11 | . 11 . . . Fabricators . | . . . . . Repair Stations . | . . . . . Recycling Units 3 | . 3 . . . Scanalyzers . | . . . . . Garrison Access . | . . . . . Terminal Hacks 57 | . 8 . 49 . Record 54 | . 5 . 49 . Robot Analysis 1 | . 1 . . . Alert Level 1 | . 1 . . . Zone Layout 1 | . 1 . . . Fabricator Hacks . | . . . . . Repair Station Hacks . | . . . . . Recycling Unit Hacks 3 | . 3 . . . Recycle Component 1 | . 1 . . . Process 1 | . 1 . . . Report Inventory 1 | . 1 . . . Scanalyzer . | . . . . . Garrison Access Hacks . | . . . . . Unauthorized Hacks . | . . . . . Terminals . | . . . . . Fabricators . | . . . . . Repair Stations . | . . . . . Recycling Units . | . . . . . Scanalyzers . | . . . . . Garrison Access . | . . . . . Data Cores Recovered . | . . . . . Used . | . . . . . Hacking Detections 2 | . 2 . . . Full Trace Events 2 | . 2 . . . Feedback Events . | . . . . . Feedback Blocked . | . . . . . Robot Schematics Acquired . | . . . . . Robots Built . | . . . . . Authchips . | . . . . . Time . | . . . . . Total Robot Build Rating . | . . . . . Part Schematics Acquired . | . . . . . Parts Built . | . . . . . Authchips . | . . . . . Time . | . . . . . Total Part Build Rating . | . . . . . Part Studies Acquired . | . . . . . Parts Repaired . | . . . . . Time . | . . . . . Parts Recycled 1 | . 1 . . . Recycled Matter 48 | . 48 . . . Retrieved Matter . | . . . . . Retrieved Components . | . . . . . Parts Scanalyzed . | . . . . . Part Schematics Acquired . | . . . . . Parts Damaged . | . . . . . Bothacking | -11 -10 -10 -10 -9 ------------ Run | Yrd Mat Min Exi Min Used RIF Installer . | . . . . . Robots Hacked . | . . . . . Non-combat . | . . . . . Combat . | . . . . . Robot Hacks Applied . | . . . . . Relay Couplers Released . | . . . . . Fabnet Peak Effective % . | . . . . . Robots Rewired . | . . . . . Allies Hacked . | . . . . . Hacks Repelled . | . . . . . Allies | -11 -10 -10 -10 -9 -------- Run | Yrd Mat Min Exi Min Total Allies . | . . . . . Largest Group . | . . . . . Highest-Rated Group . | . . . . . Highest-Rated Ally . | . . . . . Total Orders . | . . . . . Ally Attacks . | . . . . . Total Damage . | . . . . . Kills . | . . . . . Allies Corrupted . | . . . . . Allies Melted . | . . . . . Intel | -11 -10 -10 -10 -9 ------- Run | Yrd Mat Min Exi Min Active Infowar (turns) . | . . . . . Robot Analysis Total 1 | . 1 . . . Derelict Logs Recovered 1 | . . 1 . . Drone Launches . | . . . . . Drone Recoveries . | . . . . . Exploration | -11 -10 -10 -10 -9 ------------- Run | Yrd Mat Min Exi Min Turns Passed 1350 | 69 306 192 735 48 Spaces Moved 670 | 38 167 76 387 2 Core 4 | 4 . . . . Treads 270 | 34 167 69 . . Legs 396 | . . 7 387 2 Wheels . | . . . . . Hover . | . . . . . Flight . | . . . . . Fastest Speed 50 | 50 160 160 190 190 Average Speed 177 | 148 160 162 190 190 Slowest Speed 190 | 160 160 190 190 190 Overloaded Moves . | . . . . . Propulsion Burnouts . | . . . . . Robots Hopped . | . . . . . Potential Cave-ins . | . . . . . Cave-ins Triggered . | . . . . . Exploration Rate (%) 26 | 3 31 21 72 3 Regions Visited 4 Branch Regions 3 Pre-discovered Areas 2 | . . 1 1 . Known Exits Taken . | . . . . . Unknown Exits Taken 4 | 1 1 1 1 . Scrap Searched . | . . . . . Spaces Dug 1 | . 1 . . . Terrain Destroyed 1 | . 1 . . . Melee . | . . . . . Projectile 1 | . 1 . . . AOE . | . . . . . Terrain Rammed . | . . . . . Walls Destroyed . | . . . . . Machines Disabled . | . . . . . Actions | -11 -10 -10 -10 -9 --------- Run | Yrd Mat Min Exi Min Total 750 | 48 190 106 387 19 Wait 4 | 1 . 2 1 . Move 666 | 37 166 75 386 2 Hop . | . . . . . Pick Up 15 | 4 10 1 . . Fast Attach 7 | 6 1 . . . Attach 3 | . . 3 . . Detach . | . . . . . Swap 6 | . 4 2 . . Drop 3 | . 2 1 . . Fire 1 | . 1 . . . Melee 45 | . 6 22 . 17 Ram . | . . . . . Kick . | . . . . . Crush . | . . . . . Escape Stasis . | . . . . . Rewire . | . . . . . Trap . | . . . . . Miscellaneous . | . . . . . Route ------- -11/Scrapyard -10/Materials -10/Mines -10/Exiles -9/Mines History --------- Turn | Location | Event 5 | -11/Scrapyard | Discovered new exit (range 15) 70 | -11/Scrapyard | Entered Materials 314 | -10/Materials | Build established: Mutant 335 | -10/Materials | Discovered new exit (range 18) 376 | -10/Materials | Entered Mines 460 | -10/Mines | Learned location of Zion (-6) 561 | -10/Mines | Deemed a non-threat by the Exiles lab entrance 561 | -10/Mines | Discovered new exit (range 5) 568 | -10/Mines | Entered Exiles 575 | -10/Exiles | Lost 3 parts (1p1n1u) 622 | -10/Exiles | Met 8R-AWN 669 | -10/Exiles | Met EX-HEX 783 | -10/Exiles | Met EX-DEC 893 | -10/Exiles | Met EX-BIN 926 | -10/Exiles | Aligned with FarCom system 928 | -10/Exiles | Given EX-Vault access code 1280 | -10/Exiles | Discovered new exit (range 14) 1303 | -10/Exiles | Entered Mines 1308 | -9/Mines | Core integrity fell below 50% 1317 | -9/Mines | Core integrity fell below 20% 1351 | -9/Mines | Destroyed by G-34 Mercenary with Small Laser Last Messages --------------- LOCATION=UNKNOWN GOAL=ESCAPE Receiving FarCom transmissions... Sneak attack on G-34 Mercenary. L-31 Rogue knocked back. Destroyed Ion Engine. G-34 Mercenary system corrupted by crushing effect. G-34 Mercenary system terminally corrupted. L-31 Rogue suffers critical hit (Smash). Hvy. Assault Rifle severed. Destroyed Melee Analysis Suite. L-31 Rogue system corrupted by crushing effect. L-31 Rogue knocked back. L-31 Rogue system terminally corrupted. Katana fried. G-34 Mercenary suffers critical hit (Smash). Destroyed Ion Engine. G-34 Mercenary system corrupted by crushing effect. Map ----- +----------------------------------------------------+ | | | | | | | | | | | | | | | | | | | | | | | | | | | | | | | ?????????????????????????????????????????? | | ?????????????????????????????????????????? | | ?????????????????????????????????????????? | | ?????????????????????????????????????????? | | ?????????????????????????????????????????? | | ?????????????????????????????????????????? | | ?????????????????????????????????????????? | | ???# ????????#####?????????????????????? | | ??# ##### % ###???????????????????? | | ???# [%* ##??????????????????? | | ???# ### # @ #??????????????????? | | ??????????????## g #??????????????????? | | ???????????????# ## ##??????????????????? | | ???????????????# ?? #???????????????????? | | ???????????????# ?? ??????????????????? | | ??????????????? ?? ?????????????????? | | ???????????????# ??######????????????????? | | ???????????????# ????????????????????????? | | ???????????????#?????????????????????????? | | ?????????????????????????????????????????? | | ?????????????????????????????????????????? | | ?????????????????????????????????????????? | | ?????????????????????????????????????????? | | ?????????????????????????????????????????? | | ?????????????????????????????????????????? | | ?????????????????????????????????????????? | | ?????????????????????????????????????????? | | ?????????????????????????????????????????? | | ?????????????????????????????????????????? | | ?????????????????????????????????????????? | | ?????????????????????????????????????????? | | ?????????????????????????????????????????? | | ?????????????????????????????????????????? | | ?????????????????????????????????????????? | | ?????????????????????????????????????????? | +----------------------------------------------------+ Best States ------------- Heat Dissipation 25 Energy Generation 10 Energy Capacity 125 Matter Stores 300 Matter Capacity 300 Sight Range 16 Terrain Scan Density 10 Armor Coverage 150 Utility Shielding 33 Evasion (%) 40 Recoil Reduction 2 Item Schematics ----------------- None Robot Schematics ------------------ None Fabricated ------------ Nothing Repaired ---------- Nothing Studied --------- None Alien Tech Used ----------------- None Achievements -------------- Sixth Sense Challenges ------------ None Game ------ Seed LaserExperimentalChronowheel Manual? 0 Play Time 00:26:01 Cumulative 26.7 hours Start 2026.08.02 @ 08:57:33 End 2026.08.02 @ 17:49:28 Sessions 3 Manual Loads 0 Difficulty Rogue Special Mode None Game No. 49 Rogue 49 Adventurer 0 Explorer 0 Win Type - Total 0 Types 0/0/0/0/0/0/0/0/0/0 Lore% 12 Gallery% 21 Achievement% 14 Wizard Run 0 Options --------- Layout 1 ASCII 0 Keyboard 0 Movement Numpad Keybinds 0 Fullscreen 1 Font 32/SmallcapsGlow Map View 50x35 Zoom Use 0% Tactical HUD 0 Map Filters NONE Filters NONE Steam 1 RUN: c96b1efb-afc7-4789-b389-6a9fbcac7271